Workbook

Sheet Admin
AA1: Year | AB1: Month
A2: Model | B2: GSgt50_kWh_excl_Customer | AA2: 1995 | AB2: 1
AA3: 1996 | AB3: 2
A4: Actual | B4: Year | C4: Month | AA4: 1997 | AB4: 3
A5: From Date | B5: 2009 | C5: 1 | AA5: 1998 | AB5: 4
A6: To Date | B6: 2013 | C6: 12 | AA6: 1999 | AB6: 5
AA7: 2000 | AB7: 6
A8: Forecast Term | B8: 2 | C8: Years | AA8: 2001 | AB8: 7
AA9: 2002 | AB9: 8
A10: Forecast | B10: Year | C10: Month | AA10: 2003 | AB10: 9
A11: From Date | B11: 2014 | C11: 1 | E11: Months | AA11: 2004 | AB11: 10
A12: To Date | B12: 2015 | C12: 12 | E12: =MyMonthsCount(B11,C11,B12,C12) -> 24 | AA12: 2005 | AB12: 11
AA13: 2006 | AB13: 12
AA14: 2007
AA15: 2008
AA16: 2009
AA17: 2010
AA18: 2011
AA19: 2012
AA20: 2013
AA21: 2014
AA22: 2015
AA23: 2016
AA24: 2017
AA25: 2018
AA26: 2019
AA27: 2020
AA28: 2021
AA29: 2022
AA30: 2023
AA31: 2024
AA32: 2025
AA33: 2026
AA34: 2027
AA35: 2028
AA36: 2029
AA37: 2030

Sheet Monthly Data
A1: Date | B1: GSgt50_kWh_excl_Customer | C1: HDD_Lond | D1: CDD_Lond | E1: GSgtCust | F1: PeakDays | G1: RecessionD
A2: 2009-01-01 | B2: 10041072.19 | C2: 849.6 | D2: 0 | E2: 189 | F2: 21 | G2: 1
A3: 2009-02-01 | B3: 9069400.79 | C3: 612.7 | D3: 0 | E3: 188 | F3: 19 | G3: 1
A4: 2009-03-01 | B4: 9776173.87 | C4: 533.3 | D4: 0 | E4: 188 | F4: 22 | G4: 1
A5: 2009-04-01 | B5: 9109897.56 | C5: 307 | D5: 3.2 | E5: 188 | F5: 20 | G5: 1
A6: 2009-05-01 | B6: 8687283.83 | C6: 156.9 | D6: 3.1 | E6: 188 | F6: 20 | G6: 1
A7: 2009-06-01 | B7: 9451017.79 | C7: 49.7 | D7: 35.5 | E7: 188 | F7: 22 | G7: 1
A8: 2009-07-01 | B8: 9742232.97 | C8: 20.2 | D8: 29.4 | E8: 188 | F8: 22 | G8: 0
A9: 2009-08-01 | B9: 10469757.69 | C9: 17.9 | D9: 71.9 | E9: 188 | F9: 20 | G9: 0
A10: 2009-09-01 | B10: 10182474.18 | C10: 71.2 | D10: 15.9 | E10: 188 | F10: 21 | G10: 0
A11: 2009-10-01 | B11: 9994234.67 | C11: 301.2 | D11: 0 | E11: 188 | F11: 21 | G11: 0
A12: 2009-11-01 | B12: 9668749.43 | C12: 356.7 | D12: 0 | E12: 188 | F12: 21 | G12: 0
A13: 2009-12-01 | B13: 9993430.73 | C13: 637.3 | D13: 0 | E13: 190 | F13: 21 | G13: 0
A14: 2010-01-01 | B14: 10564708.06 | C14: 733.1 | D14: 0 | E14: 187 | F14: 20 | G14: 0
A15: 2010-02-01 | B15: 9623559.57 | C15: 633.4 | D15: 0 | E15: 193 | F15: 19 | G15: 0
A16: 2010-03-01 | B16: 10034192.17 | C16: 450.2 | D16: 0 | E16: 192 | F16: 23 | G16: 0
A17: 2010-04-01 | B17: 9603845.43 | C17: 236.4 | D17: 0 | E17: 191 | F17: 20 | G17: 0
A18: 2010-05-01 | B18: 10306144.42 | C18: 121.1 | D18: 34.9 | E18: 190 | F18: 20 | G18: 0
A19: 2010-06-01 | B19: 10753297.44 | C19: 23.6 | D19: 57.5 | E19: 193 | F19: 22 | G19: 0
A20: 2010-07-01 | B20: 10794881.21 | C20: 5.6 | D20: 129.7 | E20: 189 | F20: 21 | G20: 0
A21: 2010-08-01 | B21: 10882484.28 | C21: 6 | D21: 121.7 | E21: 192 | F21: 21 | G21: 0
A22: 2010-09-01 | B22: 10115723.83 | C22: 87.9 | D22: 24.1 | E22: 192 | F22: 21 | G22: 0
A23: 2010-10-01 | B23: 9906643.86 | C23: 239.5 | D23: 0 | E23: 192 | F23: 20 | G23: 0
A24: 2010-11-01 | B24: 9794566.3 | C24: 413.6 | D24: 0 | E24: 193 | F24: 22 | G24: 0
A25: 2010-12-01 | B25: 9975886.34 | C25: 713.5 | D25: 0 | E25: 192 | F25: 21 | G25: 0
A26: 2011-01-01 | B26: 10489464.5 | C26: 798.8 | D26: 0 | E26: 191 | F26: 20 | G26: 0
A27: 2011-02-01 | B27: 9582988.77 | C27: 677.8 | D27: 0 | E27: 193 | F27: 19 | G27: 0
A28: 2011-03-01 | B28: 10507121.9 | C28: 599.6 | D28: 0 | E28: 192 | F28: 23 | G28: 0
A29: 2011-04-01 | B29: 9565988.37 | C29: 330.4 | D29: 0 | E29: 194 | F29: 19 | G29: 0
A30: 2011-05-01 | B30: 9950497.46 | C30: 126.4 | D30: 17.4 | E30: 194 | F30: 21 | G30: 0
A31: 2011-06-01 | B31: 10402840.51 | C31: 27 | D31: 39.6 | E31: 195 | F31: 22 | G31: 0
A32: 2011-07-01 | B32: 10822110.18 | C32: 0 | D32: 160.9 | E32: 194 | F32: 20 | G32: 0
A33: 2011-08-01 | B33: 11178847.14 | C33: 1.5 | D33: 82.9 | E33: 194 | F33: 22 | G33: 0
A34: 2011-09-01 | B34: 10387464.11 | C34: 71.9 | D34: 29 | E34: 194 | F34: 21 | G34: 0
A35: 2011-10-01 | B35: 10194048.25 | C35: 234.6 | D35: 0 | E35: 195 | F35: 20 | G35: 0
A36: 2011-11-01 | B36: 9920993.79 | C36: 347.9 | D36: 0 | E36: 195 | F36: 22 | G36: 0
A37: 2011-12-01 | B37: 9785536.86 | C37: 548.4 | D37: 0 | E37: 195 | F37: 20 | G37: 0
A38: 2012-01-01 | B38: 10452458.27 | C38: 644.8 | D38: 0 | E38: 195 | F38: 21 | G38: 0
A39: 2012-02-01 | B39: 9937260 | C39: 553 | D39: 0 | E39: 195 | F39: 20 | G39: 0
A40: 2012-03-01 | B40: 10462882.84 | C40: 331.1 | D40: 2.2 | E40: 195 | F40: 22 | G40: 0
A41: 2012-04-01 | B41: 9640008.14 | C41: 334.6 | D41: 0 | E41: 195 | F41: 19 | G41: 0
A42: 2012-05-01 | B42: 10514005.86 | C42: 87.2 | D42: 28.5 | E42: 195 | F42: 22 | G42: 0
A43: 2012-06-01 | B43: 10767424.07 | C43: 28.2 | D43: 81.7 | E43: 194 | F43: 21 | G43: 0
A44: 2012-07-01 | B44: 11168128.79 | C44: 0 | D44: 161 | E44: 194 | F44: 21 | G44: 0
A45: 2012-08-01 | B45: 11224504.99 | C45: 7.8 | D45: 79.6 | E45: 193 | F45: 22 | G45: 0
A46: 2012-09-01 | B46: 10345375.72 | C46: 103.4 | D46: 27.7 | E46: 193 | F46: 19 | G46: 0
A47: 2012-10-01 | B47: 10172714.95 | C47: 250.5 | D47: 0.7 | E47: 193 | F47: 22 | G47: 0
A48: 2012-11-01 | B48: 9950896.8 | C48: 420.4 | D48: 0 | E48: 193 | F48: 22 | G48: 0
A49: 2012-12-01 | B49: 9898195.33 | C49: 535.9 | D49: 0 | E49: 194 | F49: 19 | G49: 0
A50: 2013-01-01 | B50: 10741569.73 | C50: 657.4 | D50: 0 | E50: 194 | F50: 22 | G50: 0
A51: 2013-02-01 | B51: 9835940.12 | C51: 657 | D51: 0 | E51: 194 | F51: 19 | G51: 0
A52: 2013-03-01 | B52: 10432388.58 | C52: 581.9 | D52: 0 | E52: 194 | F52: 20 | G52: 0
A53: 2013-04-01 | B53: 9763308.47 | C53: 362.2 | D53: 0 | E53: 166 | F53: 21 | G53: 0
A54: 2013-05-01 | B54: 9966896.91 | C54: 122.2 | D54: 27 | E54: 147 | F54: 22 | G54: 0
A55: 2013-06-01 | B55: 9797708.64 | C55: 41.1 | D55: 52.7 | E55: 142 | F55: 20 | G55: 0
A56: 2013-07-01 | B56: 10075728.88 | C56: 7.1 | D56: 108.8 | E56: 142 | F56: 22 | G56: 0
A57: 2013-08-01 | B57: 10530715.74 | C57: 18.4 | D57: 57.5 | E57: 141 | F57: 21 | G57: 0
A58: 2013-09-01 | B58: 9892268.56 | C58: 94.9 | D58: 26 | E58: 141 | F58: 20 | G58: 0
A59: 2013-10-01 | B59: 9811835.06 | C59: 184 | D59: 2.6 | E59: 142 | F59: 22 | G59: 0
A60: 2013-11-01 | B60: 9620672.12 | C60: 492.1 | D60: 0 | E60: 142 | F60: 21 | G60: 0
A61: 2013-12-01 | B61: 9553363.32 | C61: 675.7 | D61: 0 | E61: 142 | F61: 20 | G61: 0

Sheet OLS Model
A1: Model 1: OLS, using observations 2009:01-2013:12 (T = 60)
A2: Dependent variable: GSgt50_kWh_excl_Customer
B4: coefficient | C4: std. error | D4: t-ratio | E4: p-value
A5: const | B5: 5375930.482 | C5: 862060.2759 | D5: 6.236142219 | E5: 7.114507636e-08
A6: HDD_Lond | B6: 498.5658147 | C6: 200.2587173 | D6: 2.489608549 | E6: 0.01589975587
A7: CDD_Lond | B7: 8653.142447 | C7: 1224.769723 | D7: 7.065117864 | E7: 3.229540824e-09
A8: GSgtCust | B8: 7669.756861 | C8: 2194.739091 | D8: 3.494609857 | E8: 0.0009565152749
A9: PeakDays | B9: 144250.54 | C9: 35372.08711 | D9: 4.078089583 | E9: 0.0001503803145
A10: RecessionD | B10: -713277.002 | C10: 125930.2944 | D10: -5.664062055 | E10: 5.859899905e-07
A12: Mean dependent var | B12: 10098096.87 | C12: S.D. dependent var | D12: 514918.645
A13: Sum squared resid | B13: 4.4980004e+12 | C13: S.E. of regression | D13: 288610.9903
A14: R-squared | B14: 0.7124653137 | C14: Adjusted R-squared | D14: 0.6858417317
A15: F(5, 54) | B15: 26.76068577 | C15: P-value(F) | D15: 1.682612456e-13
A16: Log-likelihood | B16: -836.3455969 | C16: Akaike criterion | D16: 1684.691194
A17: Schwarz criterion | B17: 1697.257261 | C17: Hannan-Quinn | D17: 1689.606474
A18: rho | B18: -0.05925756094 | C18: Durbin-Watson | D18: 2.063708128
A19: Theil's U | B19: 0.49609

Sheet Predicted Monthly Data
A1: Date | B1: GSgt50_kWh_excl_Customer | C1: HDD_Lond | D1: CDD_Lond | E1: GSgtCust | F1: PeakDays | G1: RecessionD | I1: Const | J1: HDD_Lond | K1: CDD_Lond | L1: GSgtCust | M1: PeakDays | N1: RecessionD | O1: Predicted Value
A2: 2009-01-01 | B2: 10041072.19 | C2: 849.6 | D2: 0 | E2: 189 | F2: 21 | G2: 1 | I2: =const -> 5375930.482 | J2: =HDD_Lond*C2 -> 423581.5161 | K2: =CDD_Lond*D2 -> 0 | L2: =GSgtCust*E2 -> 1449584.047 | M2: =PeakDays*F2 -> 3029261.339 | N2: =RecessionD*G2 -> -713277.002 | O2: =SUM(I2:N2) -> 9565080.382
A3: 2009-02-01 | B3: 9069400.79 | C3: 612.7 | D3: 0 | E3: 188 | F3: 19 | G3: 1 | I3: 5375930.482 | J3: 305471.2747 | K3: 0 | L3: 1441914.29 | M3: 2740760.259 | N3: -713277.002 | O3: 9150799.304
A4: 2009-03-01 | B4: 9776173.87 | C4: 533.3 | D4: 0 | E4: 188 | F4: 22 | G4: 1 | I4: 5375930.482 | J4: 265885.149 | K4: 0 | L4: 1441914.29 | M4: 3173511.879 | N4: -713277.002 | O4: 9543964.798
A5: 2009-04-01 | B5: 9109897.56 | C5: 307 | D5: 3.2 | E5: 188 | F5: 20 | G5: 1 | I5: 5375930.482 | J5: 153059.7051 | K5: 27690.05583 | L5: 1441914.29 | M5: 2885010.799 | N5: -713277.002 | O5: 9170328.33
A6: 2009-05-01 | B6: 8687283.83 | C6: 156.9 | D6: 3.1 | E6: 188 | F6: 20 | G6: 1 | I6: 5375930.482 | J6: 78224.97632 | K6: 26824.74158 | L6: 1441914.29 | M6: 2885010.799 | N6: -713277.002 | O6: 9094628.287
A7: 2009-06-01 | B7: 9451017.79 | C7: 49.7 | D7: 35.5 | E7: 188 | F7: 22 | G7: 1 | I7: 5375930.482 | J7: 24778.72099 | K7: 307186.5569 | L7: 1441914.29 | M7: 3173511.879 | N7: -713277.002 | O7: 9610044.927
A8: 2009-07-01 | B8: 9742232.97 | C8: 20.2 | D8: 29.4 | E8: 188 | F8: 22 | G8: 0 | I8: 5375930.482 | J8: 10071.02946 | K8: 254402.3879 | L8: 1441914.29 | M8: 3173511.879 | N8: 0 | O8: 10255830.07
A9: 2009-08-01 | B9: 10469757.69 | C9: 17.9 | D9: 71.9 | E9: 188 | F9: 20 | G9: 0 | I9: 5375930.482 | J9: 8924.328083 | K9: 622160.9419 | L9: 1441914.29 | M9: 2885010.799 | N9: 0 | O9: 10333940.84
A10: 2009-09-01 | B10: 10182474.18 | C10: 71.2 | D10: 15.9 | E10: 188 | F10: 21 | G10: 0 | I10: 5375930.482 | J10: 35497.886 | K10: 137584.9649 | L10: 1441914.29 | M10: 3029261.339 | N10: 0 | O10: 10020188.96
A11: 2009-10-01 | B11: 9994234.67 | C11: 301.2 | D11: 0 | E11: 188 | F11: 21 | G11: 0 | I11: 5375930.482 | J11: 150168.0234 | K11: 0 | L11: 1441914.29 | M11: 3029261.339 | N11: 0 | O11: 9997274.135
A12: 2009-11-01 | B12: 9668749.43 | C12: 356.7 | D12: 0 | E12: 188 | F12: 21 | G12: 0 | I12: 5375930.482 | J12: 177838.4261 | K12: 0 | L12: 1441914.29 | M12: 3029261.339 | N12: 0 | O12: 10024944.54
A13: 2009-12-01 | B13: 9993430.73 | C13: 637.3 | D13: 0 | E13: 190 | F13: 21 | G13: 0 | I13: 5375930.482 | J13: 317735.9937 | K13: 0 | L13: 1457253.804 | M13: 3029261.339 | N13: 0 | O13: 10180181.62
A14: 2010-01-01 | B14: 10564708.06 | C14: 733.1 | D14: 0 | E14: 187 | F14: 20 | G14: 0 | I14: 5375930.482 | J14: 365498.5987 | K14: 0 | L14: 1434244.533 | M14: 2885010.799 | N14: 0 | O14: 10060684.41
A15: 2010-02-01 | B15: 9623559.57 | C15: 633.4 | D15: 0 | E15: 193 | F15: 19 | G15: 0 | I15: 5375930.482 | J15: 315791.587 | K15: 0 | L15: 1480263.074 | M15: 2740760.259 | N15: 0 | O15: 9912745.403
A16: 2010-03-01 | B16: 10034192.17 | C16: 450.2 | D16: 0 | E16: 192 | F16: 23 | G16: 0 | I16: 5375930.482 | J16: 224454.3298 | K16: 0 | L16: 1472593.317 | M16: 3317762.419 | N16: 0 | O16: 10390740.55
A17: 2010-04-01 | B17: 9603845.43 | C17: 236.4 | D17: 0 | E17: 191 | F17: 20 | G17: 0 | I17: 5375930.482 | J17: 117860.9586 | K17: 0 | L17: 1464923.56 | M17: 2885010.799 | N17: 0 | O17: 9843725.801
A18: 2010-05-01 | B18: 10306144.42 | C18: 121.1 | D18: 34.9 | E18: 190 | F18: 20 | G18: 0 | I18: 5375930.482 | J18: 60376.32016 | K18: 301994.6714 | L18: 1457253.804 | M18: 2885010.799 | N18: 0 | O18: 10080566.08
A19: 2010-06-01 | B19: 10753297.44 | C19: 23.6 | D19: 57.5 | E19: 193 | F19: 22 | G19: 0 | I19: 5375930.482 | J19: 11766.15323 | K19: 497555.6907 | L19: 1480263.074 | M19: 3173511.879 | N19: 0 | O19: 10539027.28
A20: 2010-07-01 | B20: 10794881.21 | C20: 5.6 | D20: 129.7 | E20: 189 | F20: 21 | G20: 0 | I20: 5375930.482 | J20: 2791.968562 | K20: 1122312.575 | L20: 1449584.047 | M20: 3029261.339 | N20: 0 | O20: 10979880.41
A21: 2010-08-01 | B21: 10882484.28 | C21: 6 | D21: 121.7 | E21: 192 | F21: 21 | G21: 0 | I21: 5375930.482 | J21: 2991.394888 | K21: 1053087.436 | L21: 1472593.317 | M21: 3029261.339 | N21: 0 | O21: 10933863.97
A22: 2010-09-01 | B22: 10115723.83 | C22: 87.9 | D22: 24.1 | E22: 192 | F22: 21 | G22: 0 | I22: 5375930.482 | J22: 43823.93511 | K22: 208540.733 | L22: 1472593.317 | M22: 3029261.339 | N22: 0 | O22: 10130149.81
A23: 2010-10-01 | B23: 9906643.86 | C23: 239.5 | D23: 0 | E23: 192 | F23: 20 | G23: 0 | I23: 5375930.482 | J23: 119406.5126 | K23: 0 | L23: 1472593.317 | M23: 2885010.799 | N23: 0 | O23: 9852941.112
A24: 2010-11-01 | B24: 9794566.3 | C24: 413.6 | D24: 0 | E24: 193 | F24: 22 | G24: 0 | I24: 5375930.482 | J24: 206206.8209 | K24: 0 | L24: 1480263.074 | M24: 3173511.879 | N24: 0 | O24: 10235912.26
A25: 2010-12-01 | B25: 9975886.34 | C25: 713.5 | D25: 0 | E25: 192 | F25: 21 | G25: 0 | I25: 5375930.482 | J25: 355726.7088 | K25: 0 | L25: 1472593.317 | M25: 3029261.339 | N25: 0 | O25: 10233511.85
A26: 2011-01-01 | B26: 10489464.5 | C26: 798.8 | D26: 0 | E26: 191 | F26: 20 | G26: 0 | I26: 5375930.482 | J26: 398254.3728 | K26: 0 | L26: 1464923.56 | M26: 2885010.799 | N26: 0 | O26: 10124119.21
A27: 2011-02-01 | B27: 9582988.77 | C27: 677.8 | D27: 0 | E27: 193 | F27: 19 | G27: 0 | I27: 5375930.482 | J27: 337927.9092 | K27: 0 | L27: 1480263.074 | M27: 2740760.259 | N27: 0 | O27: 9934881.725
A28: 2011-03-01 | B28: 10507121.9 | C28: 599.6 | D28: 0 | E28: 192 | F28: 23 | G28: 0 | I28: 5375930.482 | J28: 298940.0625 | K28: 0 | L28: 1472593.317 | M28: 3317762.419 | N28: 0 | O28: 10465226.28
A29: 2011-04-01 | B29: 9565988.37 | C29: 330.4 | D29: 0 | E29: 194 | F29: 19 | G29: 0 | I29: 5375930.482 | J29: 164726.1452 | K29: 0 | L29: 1487932.831 | M29: 2740760.259 | N29: 0 | O29: 9769349.718
A30: 2011-05-01 | B30: 9950497.46 | C30: 126.4 | D30: 17.4 | E30: 194 | F30: 21 | G30: 0 | I30: 5375930.482 | J30: 63018.71897 | K30: 150564.6786 | L30: 1487932.831 | M30: 3029261.339 | N30: 0 | O30: 10106708.05
A31: 2011-06-01 | B31: 10402840.51 | C31: 27 | D31: 39.6 | E31: 195 | F31: 22 | G31: 0 | I31: 5375930.482 | J31: 13461.277 | K31: 342664.4409 | L31: 1495602.588 | M31: 3173511.879 | N31: 0 | O31: 10401170.67
A32: 2011-07-01 | B32: 10822110.18 | C32: 0 | D32: 160.9 | E32: 194 | F32: 20 | G32: 0 | I32: 5375930.482 | J32: 0 | K32: 1392290.62 | L32: 1487932.831 | M32: 2885010.799 | N32: 0 | O32: 11141164.73
A33: 2011-08-01 | B33: 11178847.14 | C33: 1.5 | D33: 82.9 | E33: 194 | F33: 22 | G33: 0 | I33: 5375930.482 | J33: 747.848722 | K33: 717345.5088 | L33: 1487932.831 | M33: 3173511.879 | N33: 0 | O33: 10755468.55
A34: 2011-09-01 | B34: 10387464.11 | C34: 71.9 | D34: 29 | E34: 194 | F34: 21 | G34: 0 | I34: =const -> 5375930.482 | J34: =HDD_Lond*C34 -> 35846.88207 | K34: =CDD_Lond*D34 -> 250941.131 | L34: =GSgtCust*E34 -> 1487932.831 | M34: =PeakDays*F34 -> 3029261.339 | N34: =RecessionD*G34 -> 0 | O34: =SUM(I34:N34) -> 10179912.67
A35: 2011-10-01 | B35: 10194048.25 | C35: 234.6 | D35: 0 | E35: 195 | F35: 20 | G35: 0 | I35: 5375930.482 | J35: 116963.5401 | K35: 0 | L35: 1495602.588 | M35: 2885010.799 | N35: 0 | O35: 9873507.41
A36: 2011-11-01 | B36: 9920993.79 | C36: 347.9 | D36: 0 | E36: 195 | F36: 22 | G36: 0 | I36: 5375930.482 | J36: 173451.0469 | K36: 0 | L36: 1495602.588 | M36: 3173511.879 | N36: 0 | O36: 10218496
A37: 2011-12-01 | B37: 9785536.86 | C37: 548.4 | D37: 0 | E37: 195 | F37: 20 | G37: 0 | I37: 5375930.482 | J37: 273413.4928 | K37: 0 | L37: 1495602.588 | M37: 2885010.799 | N37: 0 | O37: 10029957.36
A38: 2012-01-01 | B38: 10452458.27 | C38: 644.8 | D38: 0 | E38: 195 | F38: 21 | G38: 0 | I38: 5375930.482 | J38: 321475.2373 | K38: 0 | L38: 1495602.588 | M38: 3029261.339 | N38: 0 | O38: 10222269.65
A39: 2012-02-01 | B39: 9937260 | C39: 553 | D39: 0 | E39: 195 | F39: 20 | G39: 0 | I39: 5375930.482 | J39: 275706.8955 | K39: 0 | L39: 1495602.588 | M39: 2885010.799 | N39: 0 | O39: 10032250.77
A40: 2012-03-01 | B40: 10462882.84 | C40: 331.1 | D40: 2.2 | E40: 195 | F40: 22 | G40: 0 | I40: 5375930.482 | J40: 165075.1412 | K40: 19036.91338 | L40: 1495602.588 | M40: 3173511.879 | N40: 0 | O40: 10229157
A41: 2012-04-01 | B41: 9640008.14 | C41: 334.6 | D41: 0 | E41: 195 | F41: 19 | G41: 0 | I41: 5375930.482 | J41: 166820.1216 | K41: 0 | L41: 1495602.588 | M41: 2740760.259 | N41: 0 | O41: 9779113.451
A42: 2012-05-01 | B42: 10514005.86 | C42: 87.2 | D42: 28.5 | E42: 195 | F42: 22 | G42: 0 | I42: 5375930.482 | J42: 43474.93904 | K42: 246614.5597 | L42: 1495602.588 | M42: 3173511.879 | N42: 0 | O42: 10335134.45
A43: 2012-06-01 | B43: 10767424.07 | C43: 28.2 | D43: 81.7 | E43: 194 | F43: 21 | G43: 0 | I43: 5375930.482 | J43: 14059.55597 | K43: 706961.7379 | L43: 1487932.831 | M43: 3029261.339 | N43: 0 | O43: 10614145.95
A44: 2012-07-01 | B44: 11168128.79 | C44: 0 | D44: 161 | E44: 194 | F44: 21 | G44: 0 | I44: 5375930.482 | J44: 0 | K44: 1393155.934 | L44: 1487932.831 | M44: 3029261.339 | N44: 0 | O44: 11286280.59
A45: 2012-08-01 | B45: 11224504.99 | C45: 7.8 | D45: 79.6 | E45: 193 | F45: 22 | G45: 0 | I45: 5375930.482 | J45: 3888.813354 | K45: 688790.1387 | L45: 1480263.074 | M45: 3173511.879 | N45: 0 | O45: 10722384.39
A46: 2012-09-01 | B46: 10345375.72 | C46: 103.4 | D46: 27.7 | E46: 193 | F46: 19 | G46: 0 | I46: 5375930.482 | J46: 51551.70524 | K46: 239692.0458 | L46: 1480263.074 | M46: 2740760.259 | N46: 0 | O46: 9888197.567
A47: 2012-10-01 | B47: 10172714.95 | C47: 250.5 | D47: 0.7 | E47: 193 | F47: 22 | G47: 0 | I47: 5375930.482 | J47: 124890.7366 | K47: 6057.199713 | L47: 1480263.074 | M47: 3173511.879 | N47: 0 | O47: 10160653.37
A48: 2012-11-01 | B48: 9950896.8 | C48: 420.4 | D48: 0 | E48: 193 | F48: 22 | G48: 0 | I48: 5375930.482 | J48: 209597.0685 | K48: 0 | L48: 1480263.074 | M48: 3173511.879 | N48: 0 | O48: 10239302.5
A49: 2012-12-01 | B49: 9898195.33 | C49: 535.9 | D49: 0 | E49: 194 | F49: 19 | G49: 0 | I49: 5375930.482 | J49: 267181.4201 | K49: 0 | L49: 1487932.831 | M49: 2740760.259 | N49: 0 | O49: 9871804.993
A50: 2013-01-01 | B50: 10741569.73 | C50: 657.4 | D50: 0 | E50: 194 | F50: 22 | G50: 0 | I50: 5375930.482 | J50: 327757.1666 | K50: 0 | L50: 1487932.831 | M50: 3173511.879 | N50: 0 | O50: 10365132.36
A51: 2013-02-01 | B51: 9835940.12 | C51: 657 | D51: 0 | E51: 194 | F51: 19 | G51: 0 | I51: 5375930.482 | J51: 327557.7402 | K51: 0 | L51: 1487932.831 | M51: 2740760.259 | N51: 0 | O51: 9932181.313
A52: 2013-03-01 | B52: 10432388.58 | C52: 581.9 | D52: 0 | E52: 194 | F52: 20 | G52: 0 | I52: 5375930.482 | J52: 290115.4476 | K52: 0 | L52: 1487932.831 | M52: 2885010.799 | N52: 0 | O52: 10038989.56
A53: 2013-04-01 | B53: 9763308.47 | C53: 362.2 | D53: 0 | E53: 166 | F53: 21 | G53: 0 | I53: 5375930.482 | J53: 180580.5381 | K53: 0 | L53: 1273179.639 | M53: 3029261.339 | N53: 0 | O53: 9858951.999
A54: 2013-05-01 | B54: 9966896.91 | C54: 122.2 | D54: 27 | E54: 147 | F54: 22 | G54: 0 | I54: 5375930.482 | J54: 60924.74255 | K54: 233634.8461 | L54: 1127454.259 | M54: 3173511.879 | N54: 0 | O54: 9971456.209
A55: 2013-06-01 | B55: 9797708.64 | C55: 41.1 | D55: 52.7 | E55: 142 | F55: 20 | G55: 0 | I55: 5375930.482 | J55: 20491.05498 | K55: 456020.6069 | L55: 1089105.474 | M55: 2885010.799 | N55: 0 | O55: 9826558.418
A56: 2013-07-01 | B56: 10075728.88 | C56: 7.1 | D56: 108.8 | E56: 142 | F56: 22 | G56: 0 | I56: 5375930.482 | J56: 3539.817284 | K56: 941461.8982 | L56: 1089105.474 | M56: 3173511.879 | N56: 0 | O56: 10583549.55
A57: 2013-08-01 | B57: 10530715.74 | C57: 18.4 | D57: 57.5 | E57: 141 | F57: 21 | G57: 0 | I57: 5375930.482 | J57: 9173.61099 | K57: 497555.6907 | L57: 1081435.717 | M57: 3029261.339 | N57: 0 | O57: 9993356.841
A58: 2013-09-01 | B58: 9892268.56 | C58: 94.9 | D58: 26 | E58: 141 | F58: 20 | G58: 0 | I58: 5375930.482 | J58: 47313.89581 | K58: 224981.7036 | L58: 1081435.717 | M58: 2885010.799 | N58: 0 | O58: 9614672.598
A59: 2013-10-01 | B59: 9811835.06 | C59: 184 | D59: 2.6 | E59: 142 | F59: 22 | G59: 0 | I59: 5375930.482 | J59: 91736.1099 | K59: 22498.17036 | L59: 1089105.474 | M59: 3173511.879 | N59: 0 | O59: 9752782.116
A60: 2013-11-01 | B60: 9620672.12 | C60: 492.1 | D60: 0 | E60: 142 | F60: 21 | G60: 0 | I60: 5375930.482 | J60: 245344.2374 | K60: 0 | L60: 1089105.474 | M60: 3029261.339 | N60: 0 | O60: 9739641.533
A61: 2013-12-01 | B61: 9553363.32 | C61: 675.7 | D61: 0 | E61: 142 | F61: 20 | G61: 0 | I61: 5375930.482 | J61: 336880.921 | K61: 0 | L61: 1089105.474 | M61: 2885010.799 | N61: 0 | O61: 9686927.677

Sheet Predicted Monthly Data Summ
A1: Date | B1: Year | C1: GSgt50_kWh_excl_Customer | D1: Predicted Value | E1: Absolute % Error
A2: 2009-01-01 | B2: =YEAR(A2) -> 2009 | C2: 10041072.19 | D2: 9565080.382 | E2: =ABS(D2-C2)/C2 -> 0.04740448017
A3: 2009-02-01 | B3: 2009 | C3: 9069400.79 | D3: 9150799.304 | E3: 0.008975070794
A4: 2009-03-01 | B4: 2009 | C4: 9776173.87 | D4: 9543964.798 | E4: 0.02375255133
A5: 2009-04-01 | B5: 2009 | C5: 9109897.56 | D5: 9170328.33 | E5: 0.006633529083
A6: 2009-05-01 | B6: 2009 | C6: 8687283.83 | D6: 9094628.287 | E6: 0.04688973738
A7: 2009-06-01 | B7: 2009 | C7: 9451017.79 | D7: 9610044.927 | E7: 0.01682645624
A8: 2009-07-01 | B8: 2009 | C8: 9742232.97 | D8: 10255830.07 | E8: 0.05271862215
A9: 2009-08-01 | B9: 2009 | C9: 10469757.69 | D9: 10333940.84 | E9: 0.01297230103
A10: 2009-09-01 | B10: 2009 | C10: 10182474.18 | D10: 10020188.96 | E10: 0.01593769989
A11: 2009-10-01 | B11: 2009 | C11: 9994234.67 | D11: 9997274.135 | E11: 0.0003041218213
A12: 2009-11-01 | B12: 2009 | C12: 9668749.43 | D12: 10024944.54 | E12: 0.0368398323
A13: 2009-12-01 | B13: 2009 | C13: 9993430.73 | D13: 10180181.62 | E13: 0.01868736512
A14: 2010-01-01 | B14: 2010 | C14: 10564708.06 | D14: 10060684.41 | E14: 0.0477082418
A15: 2010-02-01 | B15: 2010 | C15: 9623559.57 | D15: 9912745.403 | E15: 0.03004977844
A16: 2010-03-01 | B16: 2010 | C16: 10034192.17 | D16: 10390740.55 | E16: 0.03553334166
A17: 2010-04-01 | B17: 2010 | C17: 9603845.43 | D17: 9843725.801 | E17: 0.02497753347
A18: 2010-05-01 | B18: 2010 | C18: 10306144.42 | D18: 10080566.08 | E18: 0.02188775298
A19: 2010-06-01 | B19: 2010 | C19: 10753297.44 | D19: 10539027.28 | E19: 0.01992599587
A20: 2010-07-01 | B20: 2010 | C20: 10794881.21 | D20: 10979880.41 | E20: 0.01713767837
A21: 2010-08-01 | B21: 2010 | C21: 10882484.28 | D21: 10933863.97 | E21: 0.004721319896
A22: 2010-09-01 | B22: 2010 | C22: 10115723.83 | D22: 10130149.81 | E22: 0.001426094388
A23: 2010-10-01 | B23: 2010 | C23: 9906643.86 | D23: 9852941.112 | E23: 0.005420882107
A24: 2010-11-01 | B24: 2010 | C24: 9794566.3 | D24: 10235912.26 | E24: 0.04506028579
A25: 2010-12-01 | B25: 2010 | C25: 9975886.34 | D25: 10233511.85 | E25: 0.02582482387
A26: 2011-01-01 | B26: 2011 | C26: 10489464.5 | D26: 10124119.21 | E26: 0.03482973656
A27: 2011-02-01 | B27: 2011 | C27: 9582988.77 | D27: 9934881.725 | E27: 0.03672058514
A28: 2011-03-01 | B28: 2011 | C28: 10507121.9 | D28: 10465226.28 | E28: 0.003987354393
A29: 2011-04-01 | B29: 2011 | C29: 9565988.37 | D29: 9769349.718 | E29: 0.02125879104
A30: 2011-05-01 | B30: 2011 | C30: 9950497.46 | D30: 10106708.05 | E30: 0.01569877193
A31: 2011-06-01 | B31: 2011 | C31: 10402840.51 | D31: 10401170.67 | E31: 0.0001605179522
A32: 2011-07-01 | B32: 2011 | C32: 10822110.18 | D32: 11141164.73 | E32: 0.02948173203
A33: 2011-08-01 | B33: 2011 | C33: 11178847.14 | D33: 10755468.55 | E33: 0.03787318894
A34: 2011-09-01 | B34: =YEAR(A34) -> 2011 | C34: 10387464.11 | D34: 10179912.67 | E34: =ABS(D34-C34)/C34 -> 0.01998095417
A35: 2011-10-01 | B35: 2011 | C35: 10194048.25 | D35: 9873507.41 | E35: 0.03144392027
A36: 2011-11-01 | B36: 2011 | C36: 9920993.79 | D36: 10218496 | E36: 0.02998713765
A37: 2011-12-01 | B37: 2011 | C37: 9785536.86 | D37: 10029957.36 | E37: 0.02497773048
A38: 2012-01-01 | B38: 2012 | C38: 10452458.27 | D38: 10222269.65 | E38: 0.02202243886
A39: 2012-02-01 | B39: 2012 | C39: 9937260 | D39: 10032250.77 | E39: 0.009559049984
A40: 2012-03-01 | B40: 2012 | C40: 10462882.84 | D40: 10229157 | E40: 0.02233856954
A41: 2012-04-01 | B41: 2012 | C41: 9640008.14 | D41: 9779113.451 | E41: 0.01442999934
A42: 2012-05-01 | B42: 2012 | C42: 10514005.86 | D42: 10335134.45 | E42: 0.01701267948
A43: 2012-06-01 | B43: 2012 | C43: 10767424.07 | D43: 10614145.95 | E43: 0.01423535681
A44: 2012-07-01 | B44: 2012 | C44: 11168128.79 | D44: 11286280.59 | E44: 0.01057937267
A45: 2012-08-01 | B45: 2012 | C45: 11224504.99 | D45: 10722384.39 | E45: 0.04473432036
A46: 2012-09-01 | B46: 2012 | C46: 10345375.72 | D46: 9888197.567 | E46: 0.04419154659
A47: 2012-10-01 | B47: 2012 | C47: 10172714.95 | D47: 10160653.37 | E47: 0.001185679342
A48: 2012-11-01 | B48: 2012 | C48: 9950896.8 | D48: 10239302.5 | E48: 0.02898288567
A49: 2012-12-01 | B49: 2012 | C49: 9898195.33 | D49: 9871804.993 | E49: 0.002666176646
A50: 2013-01-01 | B50: 2013 | C50: 10741569.73 | D50: 10365132.36 | E50: 0.03504491246
A51: 2013-02-01 | B51: 2013 | C51: 9835940.12 | D51: 9932181.313 | E51: 0.00978464608
A52: 2013-03-01 | B52: 2013 | C52: 10432388.58 | D52: 10038989.56 | E52: 0.03770939098
A53: 2013-04-01 | B53: 2013 | C53: 9763308.47 | D53: 9858951.999 | E53: 0.009796221118
A54: 2013-05-01 | B54: 2013 | C54: 9966896.91 | D54: 9971456.209 | E54: 0.0004574441582
A55: 2013-06-01 | B55: 2013 | C55: 9797708.64 | D55: 9826558.418 | E55: 0.002944543351
A56: 2013-07-01 | B56: 2013 | C56: 10075728.88 | D56: 10583549.55 | E56: 0.05040039062
A57: 2013-08-01 | B57: 2013 | C57: 10530715.74 | D57: 9993356.841 | E57: 0.05102776607
A58: 2013-09-01 | B58: 2013 | C58: 9892268.56 | D58: 9614672.598 | E58: 0.02806191116
A59: 2013-10-01 | B59: 2013 | C59: 9811835.06 | D59: 9752782.116 | E59: 0.006018542253
A60: 2013-11-01 | B60: 2013 | C60: 9620672.12 | D60: 9739641.533 | E60: 0.0123660189
A61: 2013-12-01 | B61: 2013 | C61: 9553363.32 | D61: 9686927.677 | E61: 0.01398087275
E62: =AVERAGE(E2:E61) -> 0.02239244419

Sheet PredictedAnnualDataSumm
A2: Annual Predicted vs. Actual GSgt50_kWh_excl_Customer
B3: GSgt50_kWh_excl_Customer | C3: Predicted Value | D3: Absolute % Error
A4: 2009 | B4: 116185725.7 | C4: 116947206.2 | D4: 0.006553993525
A5: 2010 | B5: 122355932.9 | C5: 123193748.9 | D5: 0.006847367322
A6: 2011 | B6: 122787901.8 | C6: 122999962.4 | D6: 0.001727047452
A7: 2012 | B7: 124533855.8 | C7: 123380694.7 | D7: 0.009259819998
A8: 2013 | B8: 120022396.1 | C8: 119364200.2 | D8: 0.005483942805
C9: Mean Absolute Percentage Error (Annual) | D9: =AVERAGE(D4:D8) -> 0.00597443422
C10: Mean Absolute Percentage Error (Monthly) | D10: 0.02239244419

Sheet PredictedAnnualDataSumm2
B3: GSgt50_kWh_excl_Customer | C3: Predicted Value
A4: 2009 | B4: 116185725.7 | C4: 116947206.2
A5: 2010 | B5: 122355932.9 | C5: 123193748.9
A6: 2011 | B6: 122787901.8 | C6: 122999962.4
A7: 2012 | B7: 124533855.8 | C7: 123380694.7
A8: 2013 | B8: 120022396.1 | C8: 119364200.2

Sheet Normalized Monthly Data
A1: Date | B1: GSgt50_kWh_excl_Customer | C1: HDD_Lond | D1: CDD_Lond | E1: GSgtCust | F1: PeakDays | G1: RecessionD | I1: Const | J1: HDD_Lond | K1: CDD_Lond | L1: GSgtCust | M1: PeakDays | N1: RecessionD | O1: Normalized Value
A2: 2009-01-01 | B2: 10041072.19 | C2: 716.23 | D2: 0 | E2: 189 | F2: 21 | G2: 1 | I2: =const -> 5375930.482 | J2: =HDD_Lond*C2 -> 357087.7934 | K2: =CDD_Lond*D2 -> 0 | L2: =GSgtCust*E2 -> 1449584.047 | M2: =PeakDays*F2 -> 3029261.339 | N2: =RecessionD*G2 -> -713277.002 | O2: =SUM(I2:N2) -> 9498586.66
A3: 2009-02-01 | B3: 9069400.79 | C3: 650.25 | D3: 0 | E3: 188 | F3: 19 | G3: 1 | I3: 5375930.482 | J3: 324192.421 | K3: 0 | L3: 1441914.29 | M3: 2740760.259 | N3: -713277.002 | O3: 9169520.45
A4: 2009-03-01 | B4: 9776173.87 | C4: 533.91 | D4: 0.22 | E4: 188 | F4: 22 | G4: 1 | I4: 5375930.482 | J4: 266189.2741 | K4: 1903.691338 | L4: 1441914.29 | M4: 3173511.879 | N4: -713277.002 | O4: 9546172.615
A5: 2009-04-01 | B5: 9109897.56 | C5: 312.88 | D5: 0.32 | E5: 188 | F5: 20 | G5: 1 | I5: 5375930.482 | J5: 155991.2721 | K5: 2769.005583 | L5: 1441914.29 | M5: 2885010.799 | N5: -713277.002 | O5: 9148338.847
A6: 2009-05-01 | B6: 8687283.83 | C6: 145.96 | D6: 16.98 | E6: 188 | F6: 20 | G6: 1 | I6: 5375930.482 | J6: 72770.66631 | K6: 146930.3587 | L6: 1441914.29 | M6: 2885010.799 | N6: -713277.002 | O6: 9209279.595
A7: 2009-06-01 | B7: 9451017.79 | C7: 30.95 | D7: 59.64 | E7: 188 | F7: 22 | G7: 1 | I7: 5375930.482 | J7: 15430.61196 | K7: 516073.4155 | L7: 1441914.29 | M7: 3173511.879 | N7: -713277.002 | O7: 9809583.677
A8: 2009-07-01 | B8: 9742232.97 | C8: 6 | D8: 109.95 | E8: 188 | F8: 22 | G8: 0 | I8: 5375930.482 | J8: 2991.394888 | K8: 951413.012 | L8: 1441914.29 | M8: 3173511.879 | N8: 0 | O8: 10945761.06
A9: 2009-08-01 | B9: 10469757.69 | C9: 11.72 | D9: 76.85 | E9: 188 | F9: 20 | G9: 0 | I9: 5375930.482 | J9: 5843.191348 | K9: 664993.997 | L9: 1441914.29 | M9: 2885010.799 | N9: 0 | O9: 10373692.76
A10: 2009-09-01 | B10: 10182474.18 | C10: 72.85 | D10: 24.35 | E10: 188 | F10: 21 | G10: 0 | I10: 5375930.482 | J10: 36320.5196 | K10: 210704.0186 | L10: 1441914.29 | M10: 3029261.339 | N10: 0 | O10: 10094130.65
A11: 2009-10-01 | B11: 9994234.67 | C11: 241.64 | D11: 3.42 | E11: 188 | F11: 21 | G11: 0 | I11: 5375930.482 | J11: 120473.4435 | K11: 29593.74717 | L11: 1441914.29 | M11: 3029261.339 | N11: 0 | O11: 9997173.302
A12: 2009-11-01 | B12: 9668749.43 | C12: 414.34 | D12: 0 | E12: 188 | F12: 21 | G12: 0 | I12: 5375930.482 | J12: 206575.7597 | K12: 0 | L12: 1441914.29 | M12: 3029261.339 | N12: 0 | O12: 10053681.87
A13: 2009-12-01 | B13: 9993430.73 | C13: 630.9 | D13: 0 | E13: 190 | F13: 21 | G13: 0 | I13: 5375930.482 | J13: 314545.1725 | K13: 0 | L13: 1457253.804 | M13: 3029261.339 | N13: 0 | O13: 10176990.8
A14: 2010-01-01 | B14: 10564708.06 | C14: 716.23 | D14: 0 | E14: 187 | F14: 20 | G14: 0 | I14: 5375930.482 | J14: 357087.7934 | K14: 0 | L14: 1434244.533 | M14: 2885010.799 | N14: 0 | O14: 10052273.61
A15: 2010-02-01 | B15: 9623559.57 | C15: 650.25 | D15: 0 | E15: 193 | F15: 19 | G15: 0 | I15: 5375930.482 | J15: 324192.421 | K15: 0 | L15: 1480263.074 | M15: 2740760.259 | N15: 0 | O15: 9921146.237
A16: 2010-03-01 | B16: 10034192.17 | C16: 533.91 | D16: 0.22 | E16: 192 | F16: 23 | G16: 0 | I16: 5375930.482 | J16: 266189.2741 | K16: 1903.691338 | L16: 1472593.317 | M16: 3317762.419 | N16: 0 | O16: 10434379.18
A17: 2010-04-01 | B17: 9603845.43 | C17: 312.88 | D17: 0.32 | E17: 191 | F17: 20 | G17: 0 | I17: 5375930.482 | J17: 155991.2721 | K17: 2769.005583 | L17: 1464923.56 | M17: 2885010.799 | N17: 0 | O17: 9884625.12
A18: 2010-05-01 | B18: 10306144.42 | C18: 145.96 | D18: 16.98 | E18: 190 | F18: 20 | G18: 0 | I18: 5375930.482 | J18: 72770.66631 | K18: 146930.3587 | L18: 1457253.804 | M18: 2885010.799 | N18: 0 | O18: 9937896.11
A19: 2010-06-01 | B19: 10753297.44 | C19: 30.95 | D19: 59.64 | E19: 193 | F19: 22 | G19: 0 | I19: 5375930.482 | J19: 15430.61196 | K19: 516073.4155 | L19: 1480263.074 | M19: 3173511.879 | N19: 0 | O19: 10561209.46
A20: 2010-07-01 | B20: 10794881.21 | C20: 6 | D20: 109.95 | E20: 189 | F20: 21 | G20: 0 | I20: 5375930.482 | J20: 2991.394888 | K20: 951413.012 | L20: 1449584.047 | M20: 3029261.339 | N20: 0 | O20: 10809180.28
A21: 2010-08-01 | B21: 10882484.28 | C21: 11.72 | D21: 76.85 | E21: 192 | F21: 21 | G21: 0 | I21: 5375930.482 | J21: 5843.191348 | K21: 664993.997 | L21: 1472593.317 | M21: 3029261.339 | N21: 0 | O21: 10548622.33
A22: 2010-09-01 | B22: 10115723.83 | C22: 72.85 | D22: 24.35 | E22: 192 | F22: 21 | G22: 0 | I22: 5375930.482 | J22: 36320.5196 | K22: 210704.0186 | L22: 1472593.317 | M22: 3029261.339 | N22: 0 | O22: 10124809.68
A23: 2010-10-01 | B23: 9906643.86 | C23: 241.64 | D23: 3.42 | E23: 192 | F23: 20 | G23: 0 | I23: 5375930.482 | J23: 120473.4435 | K23: 29593.74717 | L23: 1472593.317 | M23: 2885010.799 | N23: 0 | O23: 9883601.79
A24: 2010-11-01 | B24: 9794566.3 | C24: 414.34 | D24: 0 | E24: 193 | F24: 22 | G24: 0 | I24: 5375930.482 | J24: 206575.7597 | K24: 0 | L24: 1480263.074 | M24: 3173511.879 | N24: 0 | O24: 10236281.2
A25: 2010-12-01 | B25: 9975886.34 | C25: 630.9 | D25: 0 | E25: 192 | F25: 21 | G25: 0 | I25: 5375930.482 | J25: 314545.1725 | K25: 0 | L25: 1472593.317 | M25: 3029261.339 | N25: 0 | O25: 10192330.31
A26: 2011-01-01 | B26: 10489464.5 | C26: 716.23 | D26: 0 | E26: 191 | F26: 20 | G26: 0 | I26: 5375930.482 | J26: 357087.7934 | K26: 0 | L26: 1464923.56 | M26: 2885010.799 | N26: 0 | O26: 10082952.64
A27: 2011-02-01 | B27: 9582988.77 | C27: 650.25 | D27: 0 | E27: 193 | F27: 19 | G27: 0 | I27: 5375930.482 | J27: 324192.421 | K27: 0 | L27: 1480263.074 | M27: 2740760.259 | N27: 0 | O27: 9921146.237
A28: 2011-03-01 | B28: 10507121.9 | C28: 533.91 | D28: 0.22 | E28: 192 | F28: 23 | G28: 0 | I28: 5375930.482 | J28: 266189.2741 | K28: 1903.691338 | L28: 1472593.317 | M28: 3317762.419 | N28: 0 | O28: 10434379.18
A29: 2011-04-01 | B29: 9565988.37 | C29: 312.88 | D29: 0.32 | E29: 194 | F29: 19 | G29: 0 | I29: 5375930.482 | J29: 155991.2721 | K29: 2769.005583 | L29: 1487932.831 | M29: 2740760.259 | N29: 0 | O29: 9763383.85
A30: 2011-05-01 | B30: 9950497.46 | C30: 145.96 | D30: 16.98 | E30: 194 | F30: 21 | G30: 0 | I30: 5375930.482 | J30: 72770.66631 | K30: 146930.3587 | L30: 1487932.831 | M30: 3029261.339 | N30: 0 | O30: 10112825.68
A31: 2011-06-01 | B31: 10402840.51 | C31: 30.95 | D31: 59.64 | E31: 195 | F31: 22 | G31: 0 | I31: 5375930.482 | J31: 15430.61196 | K31: 516073.4155 | L31: 1495602.588 | M31: 3173511.879 | N31: 0 | O31: 10576548.98
A32: 2011-07-01 | B32: 10822110.18 | C32: 6 | D32: 109.95 | E32: 194 | F32: 20 | G32: 0 | I32: 5375930.482 | J32: 2991.394888 | K32: 951413.012 | L32: 1487932.831 | M32: 2885010.799 | N32: 0 | O32: 10703278.52
A33: 2011-08-01 | B33: 11178847.14 | C33: 11.72 | D33: 76.85 | E33: 194 | F33: 22 | G33: 0 | I33: 5375930.482 | J33: 5843.191348 | K33: 664993.997 | L33: 1487932.831 | M33: 3173511.879 | N33: 0 | O33: 10708212.38
A34: 2011-09-01 | B34: 10387464.11 | C34: 72.85 | D34: 24.35 | E34: 194 | F34: 21 | G34: 0 | I34: =const -> 5375930.482 | J34: =HDD_Lond*C34 -> 36320.5196 | K34: =CDD_Lond*D34 -> 210704.0186 | L34: =GSgtCust*E34 -> 1487932.831 | M34: =PeakDays*F34 -> 3029261.339 | N34: =RecessionD*G34 -> 0 | O34: =SUM(I34:N34) -> 10140149.19
A35: 2011-10-01 | B35: 10194048.25 | C35: 241.64 | D35: 3.42 | E35: 195 | F35: 20 | G35: 0 | I35: 5375930.482 | J35: 120473.4435 | K35: 29593.74717 | L35: 1495602.588 | M35: 2885010.799 | N35: 0 | O35: 9906611.06
A36: 2011-11-01 | B36: 9920993.79 | C36: 414.34 | D36: 0 | E36: 195 | F36: 22 | G36: 0 | I36: 5375930.482 | J36: 206575.7597 | K36: 0 | L36: 1495602.588 | M36: 3173511.879 | N36: 0 | O36: 10251620.71
A37: 2011-12-01 | B37: 9785536.86 | C37: 630.9 | D37: 0 | E37: 195 | F37: 20 | G37: 0 | I37: 5375930.482 | J37: 314545.1725 | K37: 0 | L37: 1495602.588 | M37: 2885010.799 | N37: 0 | O37: 10071089.04
A38: 2012-01-01 | B38: 10452458.27 | C38: 716.23 | D38: 0 | E38: 195 | F38: 21 | G38: 0 | I38: 5375930.482 | J38: 357087.7934 | K38: 0 | L38: 1495602.588 | M38: 3029261.339 | N38: 0 | O38: 10257882.2
A39: 2012-02-01 | B39: 9937260 | C39: 650.25 | D39: 0 | E39: 195 | F39: 20 | G39: 0 | I39: 5375930.482 | J39: 324192.421 | K39: 0 | L39: 1495602.588 | M39: 2885010.799 | N39: 0 | O39: 10080736.29
A40: 2012-03-01 | B40: 10462882.84 | C40: 533.91 | D40: 0.22 | E40: 195 | F40: 22 | G40: 0 | I40: 5375930.482 | J40: 266189.2741 | K40: 1903.691338 | L40: 1495602.588 | M40: 3173511.879 | N40: 0 | O40: 10313137.91
A41: 2012-04-01 | B41: 9640008.14 | C41: 312.88 | D41: 0.32 | E41: 195 | F41: 19 | G41: 0 | I41: 5375930.482 | J41: 155991.2721 | K41: 2769.005583 | L41: 1495602.588 | M41: 2740760.259 | N41: 0 | O41: 9771053.607
A42: 2012-05-01 | B42: 10514005.86 | C42: 145.96 | D42: 16.98 | E42: 195 | F42: 22 | G42: 0 | I42: 5375930.482 | J42: 72770.66631 | K42: 146930.3587 | L42: 1495602.588 | M42: 3173511.879 | N42: 0 | O42: 10264745.97
A43: 2012-06-01 | B43: 10767424.07 | C43: 30.95 | D43: 59.64 | E43: 194 | F43: 21 | G43: 0 | I43: 5375930.482 | J43: 15430.61196 | K43: 516073.4155 | L43: 1487932.831 | M43: 3029261.339 | N43: 0 | O43: 10424628.68
A44: 2012-07-01 | B44: 11168128.79 | C44: 6 | D44: 109.95 | E44: 194 | F44: 21 | G44: 0 | I44: 5375930.482 | J44: 2991.394888 | K44: 951413.012 | L44: 1487932.831 | M44: 3029261.339 | N44: 0 | O44: 10847529.06
A45: 2012-08-01 | B45: 11224504.99 | C45: 11.72 | D45: 76.85 | E45: 193 | F45: 22 | G45: 0 | I45: 5375930.482 | J45: 5843.191348 | K45: 664993.997 | L45: 1480263.074 | M45: 3173511.879 | N45: 0 | O45: 10700542.62
A46: 2012-09-01 | B46: 10345375.72 | C46: 72.85 | D46: 24.35 | E46: 193 | F46: 19 | G46: 0 | I46: 5375930.482 | J46: 36320.5196 | K46: 210704.0186 | L46: 1480263.074 | M46: 2740760.259 | N46: 0 | O46: 9843978.354
A47: 2012-10-01 | B47: 10172714.95 | C47: 241.64 | D47: 3.42 | E47: 193 | F47: 22 | G47: 0 | I47: 5375930.482 | J47: 120473.4435 | K47: 29593.74717 | L47: 1480263.074 | M47: 3173511.879 | N47: 0 | O47: 10179772.63
A48: 2012-11-01 | B48: 9950896.8 | C48: 414.34 | D48: 0 | E48: 193 | F48: 22 | G48: 0 | I48: 5375930.482 | J48: 206575.7597 | K48: 0 | L48: 1480263.074 | M48: 3173511.879 | N48: 0 | O48: 10236281.2
A49: 2012-12-01 | B49: 9898195.33 | C49: 630.9 | D49: 0 | E49: 194 | F49: 19 | G49: 0 | I49: 5375930.482 | J49: 314545.1725 | K49: 0 | L49: 1487932.831 | M49: 2740760.259 | N49: 0 | O49: 9919168.745
A50: 2013-01-01 | B50: 10741569.73 | C50: 716.23 | D50: 0 | E50: 194 | F50: 22 | G50: 0 | I50: 5375930.482 | J50: 357087.7934 | K50: 0 | L50: 1487932.831 | M50: 3173511.879 | N50: 0 | O50: 10394462.99
A51: 2013-02-01 | B51: 9835940.12 | C51: 650.25 | D51: 0 | E51: 194 | F51: 19 | G51: 0 | I51: 5375930.482 | J51: 324192.421 | K51: 0 | L51: 1487932.831 | M51: 2740760.259 | N51: 0 | O51: 9928815.994
A52: 2013-03-01 | B52: 10432388.58 | C52: 533.91 | D52: 0.22 | E52: 194 | F52: 20 | G52: 0 | I52: 5375930.482 | J52: 266189.2741 | K52: 1903.691338 | L52: 1487932.831 | M52: 2885010.799 | N52: 0 | O52: 10016967.08
A53: 2013-04-01 | B53: 9763308.47 | C53: 312.88 | D53: 0.32 | E53: 166 | F53: 21 | G53: 0 | I53: 5375930.482 | J53: 155991.2721 | K53: 2769.005583 | L53: 1273179.639 | M53: 3029261.339 | N53: 0 | O53: 9837131.738
A54: 2013-05-01 | B54: 9966896.91 | C54: 145.96 | D54: 16.98 | E54: 147 | F54: 22 | G54: 0 | I54: 5375930.482 | J54: 72770.66631 | K54: 146930.3587 | L54: 1127454.259 | M54: 3173511.879 | N54: 0 | O54: 9896597.645
A55: 2013-06-01 | B55: 9797708.64 | C55: 30.95 | D55: 59.64 | E55: 142 | F55: 20 | G55: 0 | I55: 5375930.482 | J55: 15430.61196 | K55: 516073.4155 | L55: 1089105.474 | M55: 2885010.799 | N55: 0 | O55: 9881550.783
A56: 2013-07-01 | B56: 10075728.88 | C56: 6 | D56: 109.95 | E56: 142 | F56: 22 | G56: 0 | I56: 5375930.482 | J56: 2991.394888 | K56: 951413.012 | L56: 1089105.474 | M56: 3173511.879 | N56: 0 | O56: 10592952.24
A57: 2013-08-01 | B57: 10530715.74 | C57: 11.72 | D57: 76.85 | E57: 141 | F57: 21 | G57: 0 | I57: 5375930.482 | J57: 5843.191348 | K57: 664993.997 | L57: 1081435.717 | M57: 3029261.339 | N57: 0 | O57: 10157464.73
A58: 2013-09-01 | B58: 9892268.56 | C58: 72.85 | D58: 24.35 | E58: 141 | F58: 20 | G58: 0 | I58: 5375930.482 | J58: 36320.5196 | K58: 210704.0186 | L58: 1081435.717 | M58: 2885010.799 | N58: 0 | O58: 9589401.537
A59: 2013-10-01 | B59: 9811835.06 | C59: 241.64 | D59: 3.42 | E59: 142 | F59: 22 | G59: 0 | I59: 5375930.482 | J59: 120473.4435 | K59: 29593.74717 | L59: 1089105.474 | M59: 3173511.879 | N59: 0 | O59: 9788615.026
A60: 2013-11-01 | B60: 9620672.12 | C60: 414.34 | D60: 0 | E60: 142 | F60: 21 | G60: 0 | I60: 5375930.482 | J60: 206575.7597 | K60: 0 | L60: 1089105.474 | M60: 3029261.339 | N60: 0 | O60: 9700873.056
A61: 2013-12-01 | B61: 9553363.32 | C61: 630.9 | D61: 0 | E61: 142 | F61: 20 | G61: 0 | I61: 5375930.482 | J61: 314545.1725 | K61: 0 | L61: 1089105.474 | M61: 2885010.799 | N61: 0 | O61: 9664591.928
A62: 2014-01-01 | C62: 716.23 | D62: 0 | E62: 142 | F62: 22 | G62: 0 | I62: 5375930.482 | J62: 357087.7934 | K62: 0 | L62: 1089105.474 | M62: 3173511.879 | N62: 0 | O62: 9995635.629
A63: 2014-02-01 | C63: 650.25 | D63: 0 | E63: 142 | F63: 19 | G63: 0 | I63: 5375930.482 | J63: 324192.421 | K63: 0 | L63: 1089105.474 | M63: 2740760.259 | N63: 0 | O63: 9529988.637
A64: 2014-03-01 | C64: 533.91 | D64: 0.22 | E64: 142 | F64: 21 | G64: 0 | I64: 5375930.482 | J64: 266189.2741 | K64: 1903.691338 | L64: 1089105.474 | M64: 3029261.339 | N64: 0 | O64: 9762390.261
A65: 2014-04-01 | C65: 312.88 | D65: 0.32 | E65: 142 | F65: 20 | G65: 0 | I65: 5375930.482 | J65: 155991.2721 | K65: 2769.005583 | L65: 1089105.474 | M65: 2885010.799 | N65: 0 | O65: 9508807.034
A66: 2014-05-01 | C66: 145.96 | D66: 16.98 | E66: 142 | F66: 21 | G66: 0 | I66: =const -> 5375930.482 | J66: =HDD_Lond*C66 -> 72770.66631 | K66: =CDD_Lond*D66 -> 146930.3587 | L66: =GSgtCust*E66 -> 1089105.474 | M66: =PeakDays*F66 -> 3029261.339 | N66: =RecessionD*G66 -> 0 | O66: =SUM(I66:N66) -> 9713998.321
A67: 2014-06-01 | C67: 30.95 | D67: 59.64 | E67: 142 | F67: 21 | G67: 0 | I67: 5375930.482 | J67: 15430.61196 | K67: 516073.4155 | L67: 1089105.474 | M67: 3029261.339 | N67: 0 | O67: 10025801.32
A68: 2014-07-01 | C68: 6 | D68: 109.95 | E68: 143 | F68: 22 | G68: 0 | I68: 5375930.482 | J68: 2991.394888 | K68: 951413.012 | L68: 1096775.231 | M68: 3173511.879 | N68: 0 | O68: 10600622
A69: 2014-08-01 | C69: 11.72 | D69: 76.85 | E69: 143 | F69: 20 | G69: 0 | I69: 5375930.482 | J69: 5843.191348 | K69: 664993.997 | L69: 1096775.231 | M69: 2885010.799 | N69: 0 | O69: 10028553.7
A70: 2014-09-01 | C70: 72.85 | D70: 24.35 | E70: 143 | F70: 21 | G70: 0 | I70: 5375930.482 | J70: 36320.5196 | K70: 210704.0186 | L70: 1096775.231 | M70: 3029261.339 | N70: 0 | O70: 9748991.591
A71: 2014-10-01 | C71: 241.64 | D71: 3.42 | E71: 143 | F71: 22 | G71: 0 | I71: 5375930.482 | J71: 120473.4435 | K71: 29593.74717 | L71: 1096775.231 | M71: 3173511.879 | N71: 0 | O71: 9796284.783
A72: 2014-11-01 | C72: 414.34 | D72: 0 | E72: 143 | F72: 20 | G72: 0 | I72: 5375930.482 | J72: 206575.7597 | K72: 0 | L72: 1096775.231 | M72: 2885010.799 | N72: 0 | O72: 9564292.272
A73: 2014-12-01 | C73: 630.9 | D73: 0 | E73: 143 | F73: 21 | G73: 0 | I73: 5375930.482 | J73: 314545.1725 | K73: 0 | L73: 1096775.231 | M73: 3029261.339 | N73: 0 | O73: 9816512.225
A74: 2015-01-01 | C74: 716.23 | D74: 0 | E74: 143 | F74: 21 | G74: 0 | I74: 5375930.482 | J74: 357087.7934 | K74: 0 | L74: 1096775.231 | M74: 3029261.339 | N74: 0 | O74: 9859054.846
A75: 2015-02-01 | C75: 650.25 | D75: 0 | E75: 143 | F75: 19 | G75: 0 | I75: 5375930.482 | J75: 324192.421 | K75: 0 | L75: 1096775.231 | M75: 2740760.259 | N75: 0 | O75: 9537658.394
A76: 2015-03-01 | C76: 533.91 | D76: 0.22 | E76: 143 | F76: 22 | G76: 0 | I76: 5375930.482 | J76: 266189.2741 | K76: 1903.691338 | L76: 1096775.231 | M76: 3173511.879 | N76: 0 | O76: 9914310.558
A77: 2015-04-01 | C77: 312.88 | D77: 0.32 | E77: 143 | F77: 20 | G77: 0 | I77: 5375930.482 | J77: 155991.2721 | K77: 2769.005583 | L77: 1096775.231 | M77: 2885010.799 | N77: 0 | O77: 9516476.79
A78: 2015-05-01 | C78: 145.96 | D78: 16.98 | E78: 143 | F78: 20 | G78: 0 | I78: 5375930.482 | J78: 72770.66631 | K78: 146930.3587 | L78: 1096775.231 | M78: 2885010.799 | N78: 0 | O78: 9577417.538
A79: 2015-06-01 | C79: 30.95 | D79: 59.64 | E79: 143 | F79: 22 | G79: 0 | I79: 5375930.482 | J79: 15430.61196 | K79: 516073.4155 | L79: 1096775.231 | M79: 3173511.879 | N79: 0 | O79: 10177721.62
A80: 2015-07-01 | C80: 6 | D80: 109.95 | E80: 144 | F80: 22 | G80: 0 | I80: 5375930.482 | J80: 2991.394888 | K80: 951413.012 | L80: 1104444.988 | M80: 3173511.879 | N80: 0 | O80: 10608291.76
A81: 2015-08-01 | C81: 11.72 | D81: 76.85 | E81: 144 | F81: 20 | G81: 0 | I81: 5375930.482 | J81: 5843.191348 | K81: 664993.997 | L81: 1104444.988 | M81: 2885010.799 | N81: 0 | O81: 10036223.46
A82: 2015-09-01 | C82: 72.85 | D82: 24.35 | E82: 144 | F82: 21 | G82: 0 | I82: 5375930.482 | J82: 36320.5196 | K82: 210704.0186 | L82: 1104444.988 | M82: 3029261.339 | N82: 0 | O82: 9756661.348
A83: 2015-10-01 | C83: 241.64 | D83: 3.42 | E83: 144 | F83: 21 | G83: 0 | I83: 5375930.482 | J83: 120473.4435 | K83: 29593.74717 | L83: 1104444.988 | M83: 3029261.339 | N83: 0 | O83: 9659704
A84: 2015-11-01 | C84: 414.34 | D84: 0 | E84: 144 | F84: 21 | G84: 0 | I84: 5375930.482 | J84: 206575.7597 | K84: 0 | L84: 1104444.988 | M84: 3029261.339 | N84: 0 | O84: 9716212.569
A85: 2015-12-01 | C85: 630.9 | D85: 0 | E85: 144 | F85: 21 | G85: 0 | I85: 5375930.482 | J85: 314545.1725 | K85: 0 | L85: 1104444.988 | M85: 3029261.339 | N85: 0 | O85: 9824181.982

Sheet Normalized Monthly Data Summ
A1: Date | B1: Year | C1: GSgt50_kWh_excl_Customer | D1: Normalized Value
A2: 2009-01-01 | B2: =YEAR(A2) -> 2009 | C2: 10041072.19 | D2: 9498586.66
A3: 2009-02-01 | B3: 2009 | C3: 9069400.79 | D3: 9169520.45
A4: 2009-03-01 | B4: 2009 | C4: 9776173.87 | D4: 9546172.615
A5: 2009-04-01 | B5: 2009 | C5: 9109897.56 | D5: 9148338.847
A6: 2009-05-01 | B6: 2009 | C6: 8687283.83 | D6: 9209279.595
A7: 2009-06-01 | B7: 2009 | C7: 9451017.79 | D7: 9809583.677
A8: 2009-07-01 | B8: 2009 | C8: 9742232.97 | D8: 10945761.06
A9: 2009-08-01 | B9: 2009 | C9: 10469757.69 | D9: 10373692.76
A10: 2009-09-01 | B10: 2009 | C10: 10182474.18 | D10: 10094130.65
A11: 2009-10-01 | B11: 2009 | C11: 9994234.67 | D11: 9997173.302
A12: 2009-11-01 | B12: 2009 | C12: 9668749.43 | D12: 10053681.87
A13: 2009-12-01 | B13: 2009 | C13: 9993430.73 | D13: 10176990.8
A14: 2010-01-01 | B14: 2010 | C14: 10564708.06 | D14: 10052273.61
A15: 2010-02-01 | B15: 2010 | C15: 9623559.57 | D15: 9921146.237
A16: 2010-03-01 | B16: 2010 | C16: 10034192.17 | D16: 10434379.18
A17: 2010-04-01 | B17: 2010 | C17: 9603845.43 | D17: 9884625.12
A18: 2010-05-01 | B18: 2010 | C18: 10306144.42 | D18: 9937896.11
A19: 2010-06-01 | B19: 2010 | C19: 10753297.44 | D19: 10561209.46
A20: 2010-07-01 | B20: 2010 | C20: 10794881.21 | D20: 10809180.28
A21: 2010-08-01 | B21: 2010 | C21: 10882484.28 | D21: 10548622.33
A22: 2010-09-01 | B22: 2010 | C22: 10115723.83 | D22: 10124809.68
A23: 2010-10-01 | B23: 2010 | C23: 9906643.86 | D23: 9883601.79
A24: 2010-11-01 | B24: 2010 | C24: 9794566.3 | D24: 10236281.2
A25: 2010-12-01 | B25: 2010 | C25: 9975886.34 | D25: 10192330.31
A26: 2011-01-01 | B26: 2011 | C26: 10489464.5 | D26: 10082952.64
A27: 2011-02-01 | B27: 2011 | C27: 9582988.77 | D27: 9921146.237
A28: 2011-03-01 | B28: 2011 | C28: 10507121.9 | D28: 10434379.18
A29: 2011-04-01 | B29: 2011 | C29: 9565988.37 | D29: 9763383.85
A30: 2011-05-01 | B30: 2011 | C30: 9950497.46 | D30: 10112825.68
A31: 2011-06-01 | B31: 2011 | C31: 10402840.51 | D31: 10576548.98
A32: 2011-07-01 | B32: 2011 | C32: 10822110.18 | D32: 10703278.52
A33: 2011-08-01 | B33: 2011 | C33: 11178847.14 | D33: 10708212.38
A34: 2011-09-01 | B34: =YEAR(A34) -> 2011 | C34: 10387464.11 | D34: 10140149.19
A35: 2011-10-01 | B35: 2011 | C35: 10194048.25 | D35: 9906611.06
A36: 2011-11-01 | B36: 2011 | C36: 9920993.79 | D36: 10251620.71
A37: 2011-12-01 | B37: 2011 | C37: 9785536.86 | D37: 10071089.04
A38: 2012-01-01 | B38: 2012 | C38: 10452458.27 | D38: 10257882.2
A39: 2012-02-01 | B39: 2012 | C39: 9937260 | D39: 10080736.29
A40: 2012-03-01 | B40: 2012 | C40: 10462882.84 | D40: 10313137.91
A41: 2012-04-01 | B41: 2012 | C41: 9640008.14 | D41: 9771053.607
A42: 2012-05-01 | B42: 2012 | C42: 10514005.86 | D42: 10264745.97
A43: 2012-06-01 | B43: 2012 | C43: 10767424.07 | D43: 10424628.68
A44: 2012-07-01 | B44: 2012 | C44: 11168128.79 | D44: 10847529.06
A45: 2012-08-01 | B45: 2012 | C45: 11224504.99 | D45: 10700542.62
A46: 2012-09-01 | B46: 2012 | C46: 10345375.72 | D46: 9843978.354
A47: 2012-10-01 | B47: 2012 | C47: 10172714.95 | D47: 10179772.63
A48: 2012-11-01 | B48: 2012 | C48: 9950896.8 | D48: 10236281.2
A49: 2012-12-01 | B49: 2012 | C49: 9898195.33 | D49: 9919168.745
A50: 2013-01-01 | B50: 2013 | C50: 10741569.73 | D50: 10394462.99
A51: 2013-02-01 | B51: 2013 | C51: 9835940.12 | D51: 9928815.994
A52: 2013-03-01 | B52: 2013 | C52: 10432388.58 | D52: 10016967.08
A53: 2013-04-01 | B53: 2013 | C53: 9763308.47 | D53: 9837131.738
A54: 2013-05-01 | B54: 2013 | C54: 9966896.91 | D54: 9896597.645
A55: 2013-06-01 | B55: 2013 | C55: 9797708.64 | D55: 9881550.783
A56: 2013-07-01 | B56: 2013 | C56: 10075728.88 | D56: 10592952.24
A57: 2013-08-01 | B57: 2013 | C57: 10530715.74 | D57: 10157464.73
A58: 2013-09-01 | B58: 2013 | C58: 9892268.56 | D58: 9589401.537
A59: 2013-10-01 | B59: 2013 | C59: 9811835.06 | D59: 9788615.026
A60: 2013-11-01 | B60: 2013 | C60: 9620672.12 | D60: 9700873.056
A61: 2013-12-01 | B61: 2013 | C61: 9553363.32 | D61: 9664591.928
A62: 2014-01-01 | B62: 2014 | D62: 9995635.629
A63: 2014-02-01 | B63: 2014 | D63: 9529988.637
A64: 2014-03-01 | B64: 2014 | D64: 9762390.261
A65: 2014-04-01 | B65: 2014 | D65: 9508807.034
A66: 2014-05-01 | B66: =YEAR(A66) -> 2014 | D66: 9713998.321
A67: 2014-06-01 | B67: 2014 | D67: 10025801.32
A68: 2014-07-01 | B68: 2014 | D68: 10600622
A69: 2014-08-01 | B69: 2014 | D69: 10028553.7
A70: 2014-09-01 | B70: 2014 | D70: 9748991.591
A71: 2014-10-01 | B71: 2014 | D71: 9796284.783
A72: 2014-11-01 | B72: 2014 | D72: 9564292.272
A73: 2014-12-01 | B73: 2014 | D73: 9816512.225
A74: 2015-01-01 | B74: 2015 | D74: 9859054.846
A75: 2015-02-01 | B75: 2015 | D75: 9537658.394
A76: 2015-03-01 | B76: 2015 | D76: 9914310.558
A77: 2015-04-01 | B77: 2015 | D77: 9516476.79
A78: 2015-05-01 | B78: 2015 | D78: 9577417.538
A79: 2015-06-01 | B79: 2015 | D79: 10177721.62
A80: 2015-07-01 | B80: 2015 | D80: 10608291.76
A81: 2015-08-01 | B81: 2015 | D81: 10036223.46
A82: 2015-09-01 | B82: 2015 | D82: 9756661.348
A83: 2015-10-01 | B83: 2015 | D83: 9659704
A84: 2015-11-01 | B84: 2015 | D84: 9716212.569
A85: 2015-12-01 | B85: 2015 | D85: 9824181.982

Sheet NormalizedAnnualDataSumm
A2: Annual Actual vs. Normalized GSgt50_kWh_excl_Customer
B3: GSgt50_kWh_excl_Customer | C3: Normalized Value
A4: 2009 | B4: 116185725.7 | C4: 118022912.3
A5: 2010 | B5: 122355932.9 | C5: 122586355.3
A6: 2011 | B6: 122787901.8 | C6: 122672197.5
A7: 2012 | B7: 124533855.8 | C7: 122839457.3
A8: 2013 | B8: 120022396.1 | C8: 119449424.7
A9: 2014 | C9: 118091877.8
A10: 2015 | C10: 118183914.9

Sheet NormalizedAnnualDataSumm2
A2: Annual Actual vs. Normalized GSgt50_kWh_excl_Customer
B3: GSgt50_kWh_excl_Customer | C3: % Change | D3: Normalized Value | E3: % Change
A4: 2009 | B4: 116185725.7 | D4: 118022912.3
A5: 2010 | B5: 122355932.9 | C5: =B5/B4-1 -> 0.05310641366 | D5: 122586355.3 | E5: =D5/D4-1 -> 0.0386657381
A6: 2011 | B6: 122787901.8 | C6: =B6/B5-1 -> 0.003530428968 | D6: 122672197.5 | E6: =D6/D5-1 -> 0.000700258733
A7: 2012 | B7: 124533855.8 | C7: 0.01421926667 | D7: 122839457.3 | E7: 0.001363469588
A8: 2013 | B8: 120022396.1 | C8: -0.03622677225 | D8: 119449424.7 | E8: -0.02759726075
A9: 2014 | D9: 118091877.8 | E9: -0.0113650356
A10: 2015 | D10: 118183914.9 | E10: 0.000779368438
